[Event "Sempre più Rapidamente"]
[Site "Chess.com"]
[Date "2020.04.12"]
[Round "2"]
[White "GuGe14"]
[Black "mr6701"]
[Result "1-0"]
[WhiteElo "1843"]
[BlackElo "1470"]
[TimeControl "720+3"]
[EndTime "6:42:22 PDT"]
[Termination "GuGe14 ha vinto per abbandono"]

1. e4 {[%clk 0:11:57.7]} 1... d5 {[%clk 0:12:01.3]} 2. exd5 {[%clk 0:11:59.4]}
2... Nf6 {[%clk 0:12:03.3]} 3. d4 {[%clk 0:11:52.6]} 3... Nxd5 {[%clk
0:12:05.2]} 4. Nf3 {[%clk 0:11:50.5]} 4... Bf5 {[%clk 0:12:06.7]} 5. Bd3 {[%clk
0:11:31.1]} 5... Bxd3 {[%clk 0:12:07.5]} 6. Qxd3 {[%clk 0:11:27.7]} 6... e6
{[%clk 0:12:10.4]} 7. O-O {[%clk 0:11:01.2]} 7... Nc6 {[%clk 0:12:10.3]} 8. c4
{[%clk 0:10:52.6]} 8... Nf6 {[%clk 0:12:01.6]} 9. Nc3 {[%clk 0:10:44.2]} 9...
Be7 {[%clk 0:11:57.9]} 10. Be3 {[%clk 0:10:42.9]} 10... Ng4 {[%clk 0:11:53.7]}
11. d5 {[%clk 0:09:04.2]} 11... Nxe3 {[%clk 0:11:35.1]} 12. Qxe3 {[%clk
0:08:16.2]} 12... exd5 {[%clk 0:11:32.8]} 13. Rad1 {[%clk 0:08:12]} 13... O-O
{[%clk 0:11:08.9]} 14. Nxd5 {[%clk 0:08:11]} 14... Bf6 {[%clk 0:10:52.2]} 15.
Rfe1 {[%clk 0:07:48.6]} 15... Qd6 {[%clk 0:10:03.8]} 16. c5 {[%clk 0:06:18.4]}
16... Qd8 {[%clk 0:10:04.2]} 17. b4 {[%clk 0:05:59.2]} 17... a6 {[%clk
0:10:03.8]} 18. a4 {[%clk 0:05:57.9]} 18... Re8 {[%clk 0:09:33.6]} 19. Nxf6+
{[%clk 0:05:56.9]} 19... gxf6 {[%clk 0:09:29.5]} 20. Rxd8 {[%clk 0:05:55.6]}
20... Rexd8 {[%clk 0:09:30.1]} 21. b5 {[%clk 0:05:30.6]} 21... axb5 {[%clk
0:09:30.8]} 22. axb5 {[%clk 0:05:32.1]} 22... Nb4 {[%clk 0:09:31.8]} 23. Qc3
{[%clk 0:04:22.1]} 23... Nd5 {[%clk 0:09:29.2]} 24. Qc2 {[%clk 0:04:00]} 24...
Re8 {[%clk 0:09:11.5]} 25. Rxe8+ {[%clk 0:03:57.5]} 25... Rxe8 {[%clk
0:09:13.3]} 26. h3 {[%clk 0:03:52.5]} 26... c6 {[%clk 0:09:12.2]} 27. bxc6
{[%clk 0:03:38]} 27... bxc6 {[%clk 0:09:15.1]} 28. Nd4 {[%clk 0:03:29.1]} 28...
Rc8 {[%clk 0:09:09.1]} 29. Qd2 {[%clk 0:03:07.9]} 29... Ne7 {[%clk 0:09:06.3]}
30. Qe2 {[%clk 0:02:35.4]} 30... Nd5 {[%clk 0:08:59.5]} 31. Qg4+ {[%clk
0:02:35.8]} 31... Kf8 {[%clk 0:09:01.1]} 32. Qxc8+ {[%clk 0:02:37.1]} 32... Kg7
{[%clk 0:09:02.4]} 33. Qxc6 {[%clk 0:02:37.2]} 33... Nf4 {[%clk 0:09:03.2]} 34.
Qf3 {[%clk 0:02:35.1]} 34... Ng6 {[%clk 0:09:05]} 35. c6 {[%clk 0:02:36.1]}
35... Ne5 {[%clk 0:09:06.9]} 36. c7 {[%clk 0:02:34.2]} 1-0

[Event "Sempre più Rapidamente"]
[Site "Chess.com"]
[Date "2020.04.12"]
[Round "2"]
[White "Delsoldato03"]
[Black "lionblu1"]
[Result "0-1"]
[WhiteElo "1077"]
[BlackElo "1358"]
[TimeControl "720+3"]
[EndTime "6:44:16 PDT"]
[Termination "lionblu1 ha vinto per abbandono"]

1. d4 {[%clk 0:11:54.6]} 1... Nf6 {[%clk 0:12:00.2]} 2. c4 {[%clk 0:11:53.4]}
2... e6 {[%clk 0:12:01.7]} 3. Nf3 {[%clk 0:11:52.1]} 3... Bb4+ {[%clk
0:12:02.2]} 4. Bd2 {[%clk 0:11:49.8]} 4... a5 {[%clk 0:12:03.3]} 5. Qa4 {[%clk
0:11:40.4]} 5... Bxd2+ {[%clk 0:11:58.6]} 6. Nbxd2 {[%clk 0:11:40.4]} 6... O-O
{[%clk 0:11:53.9]} 7. e4 {[%clk 0:11:37.9]} 7... d6 {[%clk 0:11:49.9]} 8. Be2
{[%clk 0:11:19.1]} 8... Nbd7 {[%clk 0:11:37.2]} 9. O-O {[%clk 0:11:18.6]} 9...
c5 {[%clk 0:11:22.2]} 10. d5 {[%clk 0:10:54]} 10... e5 {[%clk 0:11:17.5]} 11.
Rab1 {[%clk 0:10:38.4]} 11... Qe7 {[%clk 0:10:24]} 12. Bd3 {[%clk 0:09:20.8]}
12... Nh5 {[%clk 0:10:13.7]} 13. g3 {[%clk 0:08:48.8]} 13... Nb6 {[%clk
0:09:57.5]} 14. Qc2 {[%clk 0:08:19.2]} 14... Bh3 {[%clk 0:09:41.8]} 15. Rfe1
{[%clk 0:08:01.9]} 15... g5 {[%clk 0:08:46.9]} 16. Bf1 {[%clk 0:07:55.1]} 16...
Bd7 {[%clk 0:08:34]} 17. Bg2 {[%clk 0:07:18.5]} 17... f5 {[%clk 0:08:31.5]} 18.
Qb3 {[%clk 0:06:55.1]} 18... Ba4 {[%clk 0:07:12.3]} 19. Qxb6 {[%clk 0:06:51.8]}
19... Bc2 {[%clk 0:07:05.6]} 20. Rbc1 {[%clk 0:06:43.2]} 20... Ba4 {[%clk
0:06:22.4]} 21. Nb3 {[%clk 0:06:34.6]} 21... Ra6 {[%clk 0:06:18.3]} 22. Qxa6
{[%clk 0:06:02.5]} 22... bxa6 {[%clk 0:06:17.9]} 23. Nxa5 {[%clk 0:06:03.8]}
23... Qc7 {[%clk 0:06:07]} 24. Nb3 {[%clk 0:05:52.6]} 24... Bxb3 {[%clk
0:06:07.2]} 25. axb3 {[%clk 0:05:53.4]} 25... fxe4 {[%clk 0:05:53.4]} 26. Rxe4
{[%clk 0:05:52.3]} 26... Qa5 {[%clk 0:05:11.8]} 27. Nxg5 {[%clk 0:05:15.6]}
27... Qd2 {[%clk 0:05:12.1]} 28. Rg4 {[%clk 0:04:53.8]} 28... Qxc1+ {[%clk
0:04:48.9]} 29. Bf1 {[%clk 0:04:54.8]} 29... Nf6 {[%clk 0:04:31.6]} 0-1

[Event "Sempre più Rapidamente"]
[Site "Chess.com"]
[Date "2020.04.12"]
[Round "2"]
[White "MartinoMontepietra"]
[Black "Carbon"]
[Result "0-1"]
[WhiteElo "767"]
[BlackElo "1784"]
[TimeControl "720+3"]
[EndTime "6:44:24 PDT"]
[Termination "Carbon ha vinto per scaccomatto"]

1. g3 {[%clk 0:11:59.2]} 1... g6 {[%clk 0:11:59.4]} 2. Nf3 {[%clk 0:11:56.6]}
2... Bg7 {[%clk 0:11:59.4]} 3. Bg2 {[%clk 0:11:57.9]} 3... Nf6 {[%clk
0:11:59.4]} 4. O-O {[%clk 0:11:58.3]} 4... O-O {[%clk 0:12:00.9]} 5. a4 {[%clk
0:11:57.7]} 5... c5 {[%clk 0:11:55.2]} 6. c3 {[%clk 0:11:57.3]} 6... d5 {[%clk
0:11:47.8]} 7. d4 {[%clk 0:11:57.4]} 7... cxd4 {[%clk 0:11:46.4]} 8. cxd4 {[%clk
0:11:57.9]} 8... Nc6 {[%clk 0:11:47.5]} 9. e3 {[%clk 0:11:50.4]} 9... Bf5 {[%clk
0:11:41]} 10. Nc3 {[%clk 0:11:47.3]} 10... a6 {[%clk 0:11:22.6]} 11. Nh4 {[%clk
0:11:46.9]} 11... Bg4 {[%clk 0:11:14]} 12. Qd2 {[%clk 0:11:39.4]} 12... Na5
{[%clk 0:10:37]} 13. e4 {[%clk 0:11:38]} 13... Nb3 {[%clk 0:10:27.1]} 14. Qc2
{[%clk 0:11:23.9]} 14... Nxa1 {[%clk 0:10:24.8]} 15. Qd3 {[%clk 0:11:13.5]}
15... Nb3 {[%clk 0:10:21.9]} 16. exd5 {[%clk 0:11:07.5]} 16... Nxc1 {[%clk
0:10:10.6]} 17. Rxc1 {[%clk 0:11:05.6]} 17... Rc8 {[%clk 0:09:53]} 18. f3 {[%clk
0:10:48.7]} 18... Bd7 {[%clk 0:09:46.4]} 19. f4 {[%clk 0:10:34]} 19... Bxa4
{[%clk 0:09:34.6]} 20. f5 {[%clk 0:09:50.4]} 20... Bb5 {[%clk 0:09:20.4]} 21.
Qd2 {[%clk 0:09:30.2]} 21... Ng4 {[%clk 0:08:56.5]} 22. fxg6 {[%clk 0:09:20.9]}
22... hxg6 {[%clk 0:08:46.1]} 23. h3 {[%clk 0:08:54.6]} 23... Bh6 {[%clk
0:08:43.2]} 24. Qe1 {[%clk 0:08:44.7]} 24... Be3+ {[%clk 0:07:22.1]} 25. Kh1
{[%clk 0:08:13.7]} 25... Nf2+ {[%clk 0:07:21.3]} 26. Kh2 {[%clk 0:08:07.1]}
26... Bxd4 {[%clk 0:07:18.7]} 27. d6 {[%clk 0:07:33.2]} 27... Qxd6 {[%clk
0:07:00.4]} 28. Bxb7 {[%clk 0:07:22.2]} 28... Rc7 {[%clk 0:06:35.1]} 29. Be4
{[%clk 0:07:01.4]} 29... Nxe4 {[%clk 0:06:17.4]} 30. Qxe4 {[%clk 0:06:50.4]}
30... Rfc8 {[%clk 0:05:35.3]} 31. Qd5 {[%clk 0:05:37.1]} 31... Qxd5 {[%clk
0:05:31.7]} 32. Nxd5 {[%clk 0:05:37.1]} 32... Rxc1 {[%clk 0:05:31.3]} 33. Nxe7+
{[%clk 0:05:28.2]} 33... Kf8 {[%clk 0:05:31.7]} 34. Nxc8 {[%clk 0:05:28.8]}
34... Rxc8 {[%clk 0:05:31.5]} 35. Nf3 {[%clk 0:04:50]} 35... Rc2+ {[%clk
0:05:26.1]} 36. Kh1 {[%clk 0:04:39.5]} 36... Bc6 {[%clk 0:05:27.4]} 37. h4
{[%clk 0:04:20.6]} 37... Bxf3# {[%clk 0:05:28.3]} 0-1

[Event "Sempre più Rapidamente"]
[Site "Chess.com"]
[Date "2020.04.12"]
[Round "2"]
[White "crippo"]
[Black "Ollarov"]
[Result "0-1"]
[WhiteElo "1608"]
[BlackElo "2014"]
[TimeControl "720+3"]
[EndTime "6:49:09 PDT"]
[Termination "Ollarov ha vinto per scaccomatto"]

1. e4 {[%clk 0:12:02.9]} 1... c5 {[%clk 0:12:01.3]} 2. Nf3 {[%clk 0:12:04.1]}
2... e6 {[%clk 0:11:59]} 3. Be2 {[%clk 0:12:03.8]} 3... Nc6 {[%clk 0:12:00.2]}
4. d3 {[%clk 0:12:05.9]} 4... g6 {[%clk 0:12:01.9]} 5. Be3 {[%clk 0:12:07.5]}
5... d6 {[%clk 0:12:03]} 6. Nc3 {[%clk 0:12:09.6]} 6... Bg7 {[%clk 0:12:05.2]}
7. O-O {[%clk 0:12:10.7]} 7... Nge7 {[%clk 0:12:07.1]} 8. Qd2 {[%clk 0:12:12.8]}
8... h6 {[%clk 0:12:06.2]} 9. Rab1 {[%clk 0:12:09.5]} 9... a6 {[%clk 0:12:02.8]}
10. a3 {[%clk 0:12:11.4]} 10... b5 {[%clk 0:12:04.5]} 11. h3 {[%clk 0:12:05.4]}
11... Bd7 {[%clk 0:12:04.3]} 12. Nh2 {[%clk 0:12:06.2]} 12... b4 {[%clk
0:12:04.8]} 13. axb4 {[%clk 0:12:07.2]} 13... cxb4 {[%clk 0:12:02.4]} 14. Nd1
{[%clk 0:12:04.4]} 14... Rb8 {[%clk 0:12:01.6]} 15. Ng4 {[%clk 0:12:03.5]} 15...
Ng8 {[%clk 0:11:40.3]} 16. Bf4 {[%clk 0:11:58.6]} 16... e5 {[%clk 0:11:41.1]}
17. Bg3 {[%clk 0:11:52.4]} 17... h5 {[%clk 0:11:41.7]} 18. Nge3 {[%clk
0:11:51.8]} 18... Nd4 {[%clk 0:11:42.4]} 19. f4 {[%clk 0:11:27.8]} 19... Ne7
{[%clk 0:11:31.2]} 20. fxe5 {[%clk 0:11:26.4]} 20... dxe5 {[%clk 0:11:33.4]} 21.
Nc4 {[%clk 0:11:10.4]} 21... Qc7 {[%clk 0:11:28.9]} 22. Nde3 {[%clk 0:11:06.2]}
22... O-O {[%clk 0:11:26.1]} 23. b3 {[%clk 0:10:18.1]} 23... Nec6 {[%clk
0:11:26]} 24. Nd5 {[%clk 0:10:09.5]} 24... Qd8 {[%clk 0:11:24]} 25. Bd1 {[%clk
0:09:48.8]} 25... Kh7 {[%clk 0:11:12]} 26. Qf2 {[%clk 0:09:09.7]} 26... Be6
{[%clk 0:11:01.1]} 27. Nde3 {[%clk 0:08:57.2]} 27... Nb5 {[%clk 0:10:48.2]} 28.
Kh1 {[%clk 0:08:03.3]} 28... Nc3 {[%clk 0:10:49.6]} 29. Rc1 {[%clk 0:08:03]}
29... Qc7 {[%clk 0:10:11.2]} 30. Bh2 {[%clk 0:07:32]} 30... Bh6 {[%clk
0:09:55.1]} 31. Ra1 {[%clk 0:07:27.6]} 31... a5 {[%clk 0:09:49.8]} 32. g4 {[%clk
0:06:56.6]} 32... Nxd1 {[%clk 0:09:06]} 33. Raxd1 {[%clk 0:06:52.8]} 33... f6
{[%clk 0:08:40.2]} 34. gxh5 {[%clk 0:06:24.9]} 34... Bxh3 {[%clk 0:08:10.1]} 35.
hxg6+ {[%clk 0:06:24.2]} 35... Kg7 {[%clk 0:08:11.8]} 36. Rg1 {[%clk 0:06:16.4]}
36... Qd7 {[%clk 0:08:06.1]} 37. Nd5 {[%clk 0:05:54.1]} 37... Be6 {[%clk
0:08:02.5]} 38. Nce3 {[%clk 0:05:46.2]} 38... Nd4 {[%clk 0:07:59.6]} 39. Qh4
{[%clk 0:05:26.4]} 39... Nf3 {[%clk 0:07:37.3]} 40. Qf2 {[%clk 0:05:27.1]} 40...
Nxg1 {[%clk 0:07:29.6]} 41. Rxg1 {[%clk 0:05:27.3]} 41... Bg5 {[%clk 0:07:27.7]}
42. Rf1 {[%clk 0:04:18.8]} 42... Qd8 {[%clk 0:07:15]} 43. Nf5+ {[%clk
0:03:37.3]} 43... Kxg6 {[%clk 0:07:08.5]} 44. Nfe7+ {[%clk 0:03:29]} 44... Kg7
{[%clk 0:07:07.9]} 45. Qg3 {[%clk 0:03:17]} 45... Rh8 {[%clk 0:06:58.9]} 46.
Rxf6 {[%clk 0:03:03.2]} 46... Bxd5 {[%clk 0:06:57.6]} 47. Nxd5 {[%clk
0:03:03.6]} 47... Qxf6 {[%clk 0:06:51.3]} 48. Nxf6 {[%clk 0:03:04.8]} 48... Kxf6
{[%clk 0:06:53.7]} 49. Qf3+ {[%clk 0:03:04.5]} 49... Bf4 {[%clk 0:06:54.4]} 50.
Qg4 {[%clk 0:02:52.7]} 50... Rxh2+ {[%clk 0:06:55.4]} 51. Kg1 {[%clk 0:02:54.4]}
51... Rbh8 {[%clk 0:06:40.5]} 52. Qf5+ {[%clk 0:02:55.6]} 52... Kg7 {[%clk
0:06:40.8]} 53. Qd7+ {[%clk 0:02:55.8]} 53... Kh6 {[%clk 0:06:39.7]} 54. Qe6+
{[%clk 0:02:55.4]} 54... Kh5 {[%clk 0:06:34.6]} 55. Qf7+ {[%clk 0:02:51.2]}
55... Kg4 {[%clk 0:06:32]} 56. Qg6+ {[%clk 0:02:15.4]} 56... Kf3 {[%clk
0:06:32]} 57. Kf1 {[%clk 0:01:51.5]} 57... Rh1+ {[%clk 0:06:29]} 58. Qg1 {[%clk
0:01:52.8]} 58... Rxg1+ {[%clk 0:06:26.8]} 59. Kxg1 {[%clk 0:01:54.2]} 59... Ke3
{[%clk 0:06:27.5]} 60. Kf1 {[%clk 0:01:56.2]} 60... Rh2 {[%clk 0:06:27.9]} 61.
Ke1 {[%clk 0:01:58.1]} 61... Rxc2 {[%clk 0:06:27.1]} 62. Kd1 {[%clk 0:01:59.8]}
62... Kxd3 {[%clk 0:06:29]} 63. Ke1 {[%clk 0:02:01.5]} 63... Ra2 {[%clk
0:06:30.2]} 64. Kd1 {[%clk 0:02:03.4]} 64... Kc3 {[%clk 0:06:32.5]} 65. Ke1
{[%clk 0:02:03.5]} 65... Kxb3 {[%clk 0:06:34.7]} 66. Kd1 {[%clk 0:02:05.7]}
66... Kc3 {[%clk 0:06:36.9]} 67. Ke1 {[%clk 0:02:07.9]} 67... Kd3 {[%clk
0:06:39.3]} 68. Kd1 {[%clk 0:02:10.1]} 68... Kxe4 {[%clk 0:06:41.5]} 69. Ke1
{[%clk 0:02:12.3]} 69... Kd3 {[%clk 0:06:44]} 70. Kd1 {[%clk 0:02:14.5]} 70...
Kc3 {[%clk 0:06:46.3]} 71. Ke1 {[%clk 0:02:16.4]} 71... Kc2 {[%clk 0:06:48.5]}
72. Kf1 {[%clk 0:02:18.3]} 72... Kb1 {[%clk 0:06:48.1]} 73. Ke1 {[%clk
0:02:20.3]} 73... Rc2 {[%clk 0:06:49.9]} 74. Kd1 {[%clk 0:02:22.5]} 74... Kb2
{[%clk 0:06:50.9]} 75. Ke1 {[%clk 0:02:24.4]} 75... a4 {[%clk 0:06:53.3]} 76.
Kf1 {[%clk 0:02:26.5]} 76... a3 {[%clk 0:06:55.7]} 77. Ke1 {[%clk 0:02:28.7]}
77... a2 {[%clk 0:06:57.9]} 78. Kd1 {[%clk 0:02:30.9]} 78... a1=R# {[%clk
0:06:58.7]} 0-1

[Event "Sempre più Rapidamente"]
[Site "Chess.com"]
[Date "2020.04.12"]
[Round "3"]
[White "Ollarov"]
[Black "Carbon"]
[Result "0-1"]
[WhiteElo "1852"]
[BlackElo "1821"]
[TimeControl "720+3"]
[EndTime "6:56:27 PDT"]
[Termination "Carbon ha vinto per scaccomatto"]

1. e4 {[%clk 0:12:02.9]} 1... e6 {[%clk 0:12:00.1]} 2. d4 {[%clk 0:12:02.4]}
2... d5 {[%clk 0:12:01.8]} 3. e5 {[%clk 0:12:04.5]} 3... c5 {[%clk 0:12:03.3]}
4. c3 {[%clk 0:12:06.7]} 4... Nc6 {[%clk 0:12:04.9]} 5. Nf3 {[%clk 0:12:08.8]}
5... Bd7 {[%clk 0:12:06.5]} 6. Bd3 {[%clk 0:12:10.6]} 6... Rc8 {[%clk 0:12:01]}
7. dxc5 {[%clk 0:11:37.7]} 7... Bxc5 {[%clk 0:11:48.2]} 8. O-O {[%clk
0:11:36.8]} 8... Nge7 {[%clk 0:11:45.9]} 9. b4 {[%clk 0:11:28.2]} 9... Bb6
{[%clk 0:11:45.6]} 10. a4 {[%clk 0:11:30.8]} 10... Ng6 {[%clk 0:11:43.6]} 11.
Bg5 {[%clk 0:11:30.7]} 11... Nce7 {[%clk 0:11:36.1]} 12. a5 {[%clk 0:11:18.8]}
12... Bc7 {[%clk 0:11:36.7]} 13. Re1 {[%clk 0:11:21]} 13... h6 {[%clk
0:11:37.2]} 14. Bd2 {[%clk 0:11:10.9]} 14... O-O {[%clk 0:11:25.3]} 15. Na3
{[%clk 0:10:51.9]} 15... f5 {[%clk 0:10:46.5]} 16. exf6 {[%clk 0:10:52.5]} 16...
Rxf6 {[%clk 0:10:45.3]} 17. Nb5 {[%clk 0:10:46]} 17... Bb8 {[%clk 0:10:21.4]}
18. Nfd4 {[%clk 0:10:27.7]} 18... e5 {[%clk 0:10:13.7]} 19. Nb3 {[%clk
0:10:25.2]} 19... a6 {[%clk 0:09:33.8]} 20. Na3 {[%clk 0:10:13.5]} 20... e4
{[%clk 0:09:15.4]} 21. Bf1 {[%clk 0:10:12.7]} 21... Qc7 {[%clk 0:09:15.2]} 22.
Nc5 {[%clk 0:10:12.7]} 22... Qxh2# {[%clk 0:09:14.1]} 0-1

[Event "Sempre più Rapidamente"]
[Site "Chess.com"]
[Date "2020.04.12"]
[Round "3"]
[White "SanSecondoPR"]
[Black "mr6701"]
[Result "0-1"]
[WhiteElo "1327"]
[BlackElo "1518"]
[TimeControl "720+3"]
[EndTime "6:59:34 PDT"]
[Termination "mr6701 ha vinto per abbandono"]

1. e4 {[%clk 0:12:02.9]} 1... d5 {[%clk 0:12:01]} 2. Nf3 {[%clk 0:11:58.6]} 2...
dxe4 {[%clk 0:12:02.5]} 3. Ng5 {[%clk 0:11:56.7]} 3... Bf5 {[%clk 0:12:04.7]} 4.
d3 {[%clk 0:11:56]} 4... exd3 {[%clk 0:12:05.1]} 5. Bxd3 {[%clk 0:11:55.9]} 5...
Bxd3 {[%clk 0:12:06.5]} 6. cxd3 {[%clk 0:11:50.4]} 6... h6 {[%clk 0:12:04.9]} 7.
Ne4 {[%clk 0:11:40.5]} 7... Nf6 {[%clk 0:12:05.3]} 8. Nxf6+ {[%clk 0:11:40.9]}
8... exf6 {[%clk 0:12:08.2]} 9. O-O {[%clk 0:11:40]} 9... Be7 {[%clk 0:12:10.3]}
10. Qb3 {[%clk 0:11:30.8]} 10... b6 {[%clk 0:12:07.1]} 11. Nc3 {[%clk
0:11:27.7]} 11... O-O {[%clk 0:12:07.6]} 12. Be3 {[%clk 0:11:13.2]} 12... Nc6
{[%clk 0:12:06.1]} 13. Rad1 {[%clk 0:11:04]} 13... Nd4 {[%clk 0:12:07.5]} 14.
Qa4 {[%clk 0:10:46.7]} 14... Nf5 {[%clk 0:11:53.3]} 15. Bc1 {[%clk 0:10:31.7]}
15... Qd4 {[%clk 0:11:47]} 16. Qc6 {[%clk 0:10:20.8]} 16... Bd6 {[%clk
0:11:37.3]} 17. Ne4 {[%clk 0:09:58.9]} 17... Qe5 {[%clk 0:11:08.1]} 18. Nxd6
{[%clk 0:09:36.2]} 18... Qxd6 {[%clk 0:11:04.7]} 19. Qe4 {[%clk 0:09:22.2]}
19... Nd4 {[%clk 0:10:47]} 20. Bf4 {[%clk 0:09:11.7]} 20... Qxf4 {[%clk
0:10:29.7]} 21. Qxf4 {[%clk 0:08:39.9]} 21... Ne2+ {[%clk 0:10:24.8]} 22. Kh1
{[%clk 0:08:38.4]} 22... Nxf4 {[%clk 0:10:27]} 23. d4 {[%clk 0:08:33.6]} 23...
Rad8 {[%clk 0:10:28.2]} 24. g3 {[%clk 0:08:32.1]} 24... Ne6 {[%clk 0:10:27.3]}
25. d5 {[%clk 0:08:31.7]} 25... Nc5 {[%clk 0:10:29.7]} 26. b4 {[%clk 0:08:29.3]}
26... Ne4 {[%clk 0:10:31.3]} 27. f3 {[%clk 0:08:26.4]} 27... Nc3 {[%clk
0:10:32.2]} 28. Rd2 {[%clk 0:08:14.7]} 28... Rxd5 {[%clk 0:10:30.4]} 29. Rc2
{[%clk 0:08:15.9]} 29... Rd3 {[%clk 0:10:26.8]} 30. Rfc1 {[%clk 0:08:12.9]}
30... Nb5 {[%clk 0:10:28.7]} 31. a4 {[%clk 0:08:08.8]} 31... Nd4 {[%clk
0:10:30.5]} 32. Rxc7 {[%clk 0:08:06.8]} 32... Nxf3 {[%clk 0:10:31.9]} 33. Rxa7
{[%clk 0:07:57.1]} 33... Rd2 {[%clk 0:10:32.7]} 0-1

[Event "Sempre più Rapidamente"]
[Site "Chess.com"]
[Date "2020.04.12"]
[Round "3"]
[White "MartinoMontepietra"]
[Black "sirmale49"]
[Result "0-1"]
[WhiteElo "763"]
[BlackElo "1422"]
[TimeControl "720+3"]
[EndTime "7:03:15 PDT"]
[Termination "sirmale49 ha vinto per scaccomatto"]

1. g3 {[%clk 0:11:47.8]} 1... d5 {[%clk 0:12:00.4]} 2. Bg2 {[%clk 0:11:48.8]}
2... Nf6 {[%clk 0:11:59.9]} 3. Nf3 {[%clk 0:11:49]} 3... Nc6 {[%clk 0:11:59.5]}
4. O-O {[%clk 0:11:48.9]} 4... Bg4 {[%clk 0:11:52.7]} 5. a4 {[%clk 0:11:46]}
5... Qd7 {[%clk 0:11:52.3]} 6. h3 {[%clk 0:11:39.4]} 6... Bxh3 {[%clk
0:11:52.6]} 7. Bxh3 {[%clk 0:11:40]} 7... Qxh3 {[%clk 0:11:53.6]} 8. Nh2 {[%clk
0:11:19.4]} 8... Ne5 {[%clk 0:11:37.9]} 9. f3 {[%clk 0:11:18.1]} 9... Nh5 {[%clk
0:11:26.4]} 10. Rf2 {[%clk 0:11:15.7]} 10... Qxg3+ {[%clk 0:10:58]} 11. Kf1
{[%clk 0:11:07.2]} 11... Nf4 {[%clk 0:10:49.4]} 12. d3 {[%clk 0:10:58.3]} 12...
Nh3 {[%clk 0:10:46.7]} 13. Rg2 {[%clk 0:10:54.3]} 13... Qh4 {[%clk 0:10:29]} 14.
d4 {[%clk 0:10:34.4]} 14... Ng6 {[%clk 0:09:53.8]} 15. Be3 {[%clk 0:09:54.7]}
15... Ngf4 {[%clk 0:09:40.4]} 16. Bf2 {[%clk 0:09:34.3]} 16... Nxf2 {[%clk
0:09:35.2]} 17. Rxf2 {[%clk 0:09:32.6]} 17... e6 {[%clk 0:09:09]} 18. Ra3 {[%clk
0:09:22.8]} 18... Bd6 {[%clk 0:09:07.9]} 19. Rc3 {[%clk 0:09:07.3]} 19... Nh3
{[%clk 0:09:03.8]} 20. Rg2 {[%clk 0:08:52.9]} 20... Bxh2 {[%clk 0:08:22.4]} 21.
Rxh2 {[%clk 0:08:47.6]} 21... Qg3 {[%clk 0:08:16.4]} 22. Rxh3 {[%clk 0:07:33.5]}
22... Qxh3+ {[%clk 0:08:15.1]} 23. Ke1 {[%clk 0:07:27.6]} 23... O-O-O {[%clk
0:07:57.7]} 24. Kd2 {[%clk 0:07:21.3]} 24... Qh6+ {[%clk 0:07:49.7]} 25. Ke1
{[%clk 0:07:15.8]} 25... Qh1+ {[%clk 0:07:50.8]} 26. Kd2 {[%clk 0:07:08.4]}
26... Qxd1+ {[%clk 0:07:52.1]} 27. Kxd1 {[%clk 0:07:02.9]} 27... h5 {[%clk
0:07:53.7]} 28. Ke1 {[%clk 0:07:01.8]} 28... h4 {[%clk 0:07:55.5]} 29. Kf1
{[%clk 0:07:02.4]} 29... h3 {[%clk 0:07:57.2]} 30. Kg1 {[%clk 0:07:03.2]} 30...
h2+ {[%clk 0:07:58.6]} 31. Kh1 {[%clk 0:07:03]} 31... Rh5 {[%clk 0:07:56.2]} 32.
Rd3 {[%clk 0:07:02.7]} 32... Rdh8 {[%clk 0:07:56.7]} 33. Rd1 {[%clk 0:07:03]}
33... Rg5 {[%clk 0:07:56.2]} 34. Rf1 {[%clk 0:07:00.1]} 34... Rh4 {[%clk
0:07:35.6]} 35. Rf2 {[%clk 0:06:42.5]} 35... Rg1# {[%clk 0:07:29.5]} 0-1

[Event "Sempre più Rapidamente"]
[Site "Chess.com"]
[Date "2020.04.12"]
[Round "3"]
[White "sergiodone"]
[Black "ottovolante"]
[Result "1-0"]
[WhiteElo "1210"]
[BlackElo "994"]
[TimeControl "720+3"]
[EndTime "7:05:14 PDT"]
[Termination "sergiodone ha vinto per scaccomatto"]

1. e4 {[%clk 0:12:02.9]} 1... e5 {[%clk 0:11:58.8]} 2. d4 {[%clk 0:12:03.5]}
2... d6 {[%clk 0:11:58.6]} 3. Nf3 {[%clk 0:12:04.6]} 3... Nc6 {[%clk 0:11:53.9]}
4. Bc4 {[%clk 0:12:04.7]} 4... h6 {[%clk 0:11:53.8]} 5. h3 {[%clk 0:12:06.4]}
5... a6 {[%clk 0:11:49]} 6. c3 {[%clk 0:12:05.6]} 6... Nf6 {[%clk 0:11:46.4]} 7.
Nbd2 {[%clk 0:12:03.3]} 7... Qe7 {[%clk 0:11:36.5]} 8. d5 {[%clk 0:12:04.5]}
8... Na5 {[%clk 0:11:35.4]} 9. Be2 {[%clk 0:12:00.9]} 9... b6 {[%clk 0:11:20.2]}
10. b4 {[%clk 0:11:52.6]} 10... Nb7 {[%clk 0:11:21.2]} 11. a4 {[%clk 0:11:51.7]}
11... Bd7 {[%clk 0:11:22.7]} 12. Qc2 {[%clk 0:11:41.3]} 12... Qd8 {[%clk
0:10:56.4]} 13. Nc4 {[%clk 0:11:22.6]} 13... Be7 {[%clk 0:10:55.2]} 14. Ne3
{[%clk 0:11:18.1]} 14... Qc8 {[%clk 0:10:35.1]} 15. g4 {[%clk 0:10:54]} 15...
Ng8 {[%clk 0:10:28.7]} 16. Nf5 {[%clk 0:10:49.2]} 16... g6 {[%clk 0:10:25.2]}
17. Nxe7 {[%clk 0:10:33]} 17... Nxe7 {[%clk 0:10:25.6]} 18. Be3 {[%clk
0:10:28.5]} 18... Ng8 {[%clk 0:10:15.6]} 19. c4 {[%clk 0:10:08.7]} 19... Qd8
{[%clk 0:08:59.6]} 20. Qd2 {[%clk 0:09:57.4]} 20... Kf8 {[%clk 0:08:06.3]} 21.
Kf1 {[%clk 0:09:53]} 21... Nf6 {[%clk 0:07:58.2]} 22. Kg2 {[%clk 0:09:44.7]}
22... Nxe4 {[%clk 0:07:57.9]} 23. Qb2 {[%clk 0:09:19.4]} 23... g5 {[%clk
0:07:27.3]} 24. Nxe5 {[%clk 0:08:47.7]} 24... Rg8 {[%clk 0:06:36]} 25. Nxd7+
{[%clk 0:08:17.9]} 25... Qxd7 {[%clk 0:06:36.7]} 26. Bf3 {[%clk 0:08:15.5]}
26... Qe7 {[%clk 0:06:24.7]} 27. Bd4 {[%clk 0:08:12.7]} 27... Ke8 {[%clk
0:05:29.6]} 28. Rhe1 {[%clk 0:08:11.5]} 28... Kd7 {[%clk 0:05:22.8]} 29. Rxe4
{[%clk 0:08:12.6]} 29... Qd8 {[%clk 0:05:21.7]} 30. Bf6 {[%clk 0:08:10.2]} 30...
Qf8 {[%clk 0:05:17.9]} 31. Re7+ {[%clk 0:08:07.8]} 31... Kc8 {[%clk 0:05:15.4]}
32. Qc2 {[%clk 0:07:53.8]} 32... Rg6 {[%clk 0:05:14.8]} 33. Qf5+ {[%clk
0:07:19.4]} 33... Kb8 {[%clk 0:05:10]} 34. Qd7 {[%clk 0:07:09.2]} 34... Rxf6
{[%clk 0:05:04]} 35. Qxc7+ {[%clk 0:07:09.8]} 35... Ka7 {[%clk 0:04:51.6]} 36.
Qxb7# {[%clk 0:07:11.3]} 1-0